[Event "Late-Titled-Tuesday-Blitz-May-07-2024"]
[Site "Chess.com"]
[Date "2024.05.07"]
[Round "1"]
[White "stollenmonster"]
[Black "imdvb6307"]
[Result "1-0"]
[WhiteElo "2874"]
[BlackElo "2514"]
[TimeControl "180+1"]
[EndTime "14:06:14 PDT"]
[Termination "stollenmonster won on time"]

1. e4 {[%clk 0:03:00.9]} 1... Nc6 {[%clk 0:03:00]} 2. Nc3 {[%clk 0:03:00]} 2...
e5 {[%clk 0:02:59.7]} 3. g3 {[%clk 0:02:59.7]} 3... Bc5 {[%clk 0:02:59]} 4. Bg2
{[%clk 0:03:00.2]} 4... d6 {[%clk 0:02:58.6]} 5. Nge2 {[%clk 0:03:00.6]} 5...
Nge7 {[%clk 0:02:57.6]} 6. d3 {[%clk 0:03:00.8]} 6... a6 {[%clk 0:02:53.2]} 7.
O-O {[%clk 0:03:00.9]} 7... O-O {[%clk 0:02:53]} 8. h3 {[%clk 0:03:00.4]} 8...
f5 {[%clk 0:02:49.8]} 9. Kh2 {[%clk 0:02:59.4]} 9... Be6 {[%clk 0:02:40.7]} 10.
f4 {[%clk 0:02:50]} 10... Qd7 {[%clk 0:02:40.3]} 11. Nd5 {[%clk 0:02:49.4]}
11... Rf7 {[%clk 0:02:12.8]} 12. c3 {[%clk 0:02:46]} 12... Ba7 {[%clk
0:02:09.8]} 13. Bd2 {[%clk 0:02:37.6]} 13... Raf8 {[%clk 0:02:09.5]} 14. Qc2
{[%clk 0:02:36.8]} 14... Nd8 {[%clk 0:02:09.2]} 15. Rae1 {[%clk 0:02:35.2]}
15... c6 {[%clk 0:02:06.4]} 16. Nxe7+ {[%clk 0:02:35.6]} 16... Qxe7 {[%clk
0:01:55.5]} 17. exf5 {[%clk 0:02:21.4]} 17... Bxf5 {[%clk 0:01:55.3]} 18. g4
{[%clk 0:02:14.1]} 18... Bc8 {[%clk 0:01:54.6]} 19. f5 {[%clk 0:02:13]} 19...
Qc7 {[%clk 0:01:54.4]} 20. d4 {[%clk 0:02:08.9]} 20... e4 {[%clk 0:01:40.9]} 21.
Bf4 {[%clk 0:02:04]} 21... Re8 {[%clk 0:00:53.6]} 22. Ng3 {[%clk 0:02:03.2]}
22... Bb8 {[%clk 0:00:27.5]} 23. Nxe4 {[%clk 0:02:01.4]} 23... h6 {[%clk
0:00:27.6]} 24. Bxd6 {[%clk 0:01:51.7]} 24... Rxe4 {[%clk 0:00:19.9]} 25. Bxc7
{[%clk 0:01:50.3]} 25... Bxc7+ {[%clk 0:00:20]} 26. Kh1 {[%clk 0:01:50.8]} 26...
Rxe1 {[%clk 0:00:19.6]} 27. Rxe1 {[%clk 0:01:51.7]} 27... Bd7 {[%clk 0:00:19.9]}
28. d5 {[%clk 0:01:49.3]} 28... c5 {[%clk 0:00:19.9]} 29. d6 {[%clk 0:01:49]}
29... Bxd6 {[%clk 0:00:20.1]} 30. Bd5 {[%clk 0:01:49.4]} 30... Kf8 {[%clk
0:00:19.1]} 31. Bxf7 {[%clk 0:01:48.7]} 31... Nxf7 {[%clk 0:00:19.1]} 32. Rd1
{[%clk 0:01:47.7]} 32... Bc6+ {[%clk 0:00:19]} 33. Kg1 {[%clk 0:01:48]} 33...
Bf4 {[%clk 0:00:19]} 34. Qf2 {[%clk 0:01:47]} 34... Ng5 {[%clk 0:00:15.5]} 35.
Rd3 {[%clk 0:01:42.4]} 35... Bc7 {[%clk 0:00:13]} 36. Qxc5+ {[%clk 0:01:39.6]}
36... Kg8 {[%clk 0:00:12.8]} 37. h4 {[%clk 0:01:35.6]} 37... Nf3+ {[%clk
0:00:11.4]} 38. Rxf3 {[%clk 0:01:33.7]} 38... Bxf3 {[%clk 0:00:11.4]} 39. Qxc7
{[%clk 0:01:33]} 39... Kh8 {[%clk 0:00:01.8]} 40. g5 {[%clk 0:01:32]} 40... hxg5
{[%clk 0:00:01.6]} 41. hxg5 {[%clk 0:01:32.9]} 41... Bc6 {[%clk 0:00:00.6]} 42.
g6 {[%clk 0:01:32.9]} 1-0

[Event "Late-Titled-Tuesday-Blitz-May-07-2024"]
[Site "Chess.com"]
[Date "2024.05.07"]
[Round "1"]
[White "pouya21"]
[Black "wild3000"]
[Result "1-0"]
[WhiteElo "2831"]
[BlackElo "2487"]
[TimeControl "180+1"]
[EndTime "14:06:16 PDT"]
[Termination "pouya21 won on time"]

1. e4 {[%clk 0:03:00.9]} 1... e6 {[%clk 0:02:59.4]} 2. d4 {[%clk 0:03:00.5]}
2... a6 {[%clk 0:02:57]} 3. Nf3 {[%clk 0:02:59.8]} 3... d5 {[%clk 0:02:53]} 4.
e5 {[%clk 0:02:58.4]} 4... c5 {[%clk 0:02:52.9]} 5. c3 {[%clk 0:02:59.1]} 5...
Nc6 {[%clk 0:02:51.8]} 6. Be2 {[%clk 0:02:56.8]} 6... Nge7 {[%clk 0:02:51.6]} 7.
O-O {[%clk 0:02:53.7]} 7... Nf5 {[%clk 0:02:47.4]} 8. Na3 {[%clk 0:02:45.7]}
8... b5 {[%clk 0:02:42.4]} 9. Nc2 {[%clk 0:02:43.4]} 9... c4 {[%clk 0:02:31.2]}
10. g4 {[%clk 0:02:41.2]} 10... Nh4 {[%clk 0:02:29]} 11. Nxh4 {[%clk 0:02:40.4]}
11... Qxh4 {[%clk 0:02:28.6]} 12. f4 {[%clk 0:02:33.7]} 12... f6 {[%clk
0:02:07.8]} 13. Be3 {[%clk 0:02:20.5]} 13... Bd7 {[%clk 0:02:01.9]} 14. Ne1
{[%clk 0:02:14.6]} 14... fxe5 {[%clk 0:01:42.4]} 15. dxe5 {[%clk 0:02:09.8]}
15... O-O-O {[%clk 0:01:29]} 16. a4 {[%clk 0:02:02.7]} 16... b4 {[%clk
0:01:28.6]} 17. Bf2 {[%clk 0:01:56.9]} 17... Qh3 {[%clk 0:01:11.9]} 18. Bf3
{[%clk 0:01:46.2]} 18... h5 {[%clk 0:01:08.3]} 19. g5 {[%clk 0:01:31.2]} 19...
Qf5 {[%clk 0:00:56.8]} 20. Ng2 {[%clk 0:01:28]} 20... g6 {[%clk 0:00:45.3]} 21.
Qd2 {[%clk 0:01:06]} 21... bxc3 {[%clk 0:00:36.7]} 22. bxc3 {[%clk 0:01:06.9]}
22... Na5 {[%clk 0:00:32.6]} 23. Qe3 {[%clk 0:01:01.8]} 23... Nb3 {[%clk
0:00:12.9]} 24. Qa7 {[%clk 0:01:01.4]} 24... Re8 {[%clk 0:00:10.2]} 25. Bb6
{[%clk 0:00:57.6]} 25... Bc5+ {[%clk 0:00:10.1]} 26. Bxc5 {[%clk 0:00:57.7]}
26... Nxc5 {[%clk 0:00:11]} 27. Qxc5+ {[%clk 0:00:58]} 27... Kd8 {[%clk
0:00:11.4]} 28. Rab1 {[%clk 0:00:57.4]} 1-0

[Event "Late-Titled-Tuesday-Blitz-May-07-2024"]
[Site "Chess.com"]
[Date "2024.05.07"]
[Round "1"]
[White "Bryanl106"]
[Black "RichardShtivelband"]
[Result "1-0"]
[WhiteElo "2690"]
[BlackElo "2387"]
[TimeControl "180+1"]
[EndTime "14:06:16 PDT"]
[Termination "Bryanl106 won by resignation"]

1. e4 {[%clk 0:03:00.9]} 1... e5 {[%clk 0:02:56.1]} 2. Nf3 {[%clk 0:03:00]} 2...
Nc6 {[%clk 0:02:55.6]} 3. Nc3 {[%clk 0:02:59.9]} 3... g6 {[%clk 0:02:54.5]} 4.
d4 {[%clk 0:02:59.6]} 4... exd4 {[%clk 0:02:54.9]} 5. Nxd4 {[%clk 0:03:00.5]}
5... Bg7 {[%clk 0:02:54.9]} 6. Be3 {[%clk 0:03:01.2]} 6... Nge7 {[%clk
0:02:53.7]} 7. Qd2 {[%clk 0:03:00.8]} 7... O-O {[%clk 0:02:52.9]} 8. Bc4 {[%clk
0:02:59.9]} 8... d6 {[%clk 0:02:51.8]} 9. O-O-O {[%clk 0:02:59.6]} 9... Ne5
{[%clk 0:02:47.9]} 10. Bb3 {[%clk 0:02:58.8]} 10... a6 {[%clk 0:02:37.9]} 11. f4
{[%clk 0:02:54]} 11... Ng4 {[%clk 0:02:28.3]} 12. Bg1 {[%clk 0:02:52.1]} 12...
Nc6 {[%clk 0:02:21.3]} 13. h3 {[%clk 0:02:50.2]} 13... Nf6 {[%clk 0:02:16.4]}
14. Nxc6 {[%clk 0:02:46.8]} 14... bxc6 {[%clk 0:02:16.4]} 15. e5 {[%clk
0:02:46.2]} 15... Ne8 {[%clk 0:02:06.9]} 16. Kb1 {[%clk 0:02:30.5]} 16... Be6
{[%clk 0:02:02.7]} 17. Bxe6 {[%clk 0:02:20.1]} 17... fxe6 {[%clk 0:02:02.5]} 18.
Ne4 {[%clk 0:02:20.8]} 18... Qe7 {[%clk 0:01:41.7]} 19. Bh2 {[%clk 0:01:53.9]}
19... d5 {[%clk 0:01:33.8]} 20. Ng5 {[%clk 0:01:53.3]} 20... h6 {[%clk
0:01:29.7]} 21. Nf3 {[%clk 0:01:53.3]} 21... c5 {[%clk 0:01:29.6]} 22. Qd3
{[%clk 0:01:50.1]} 22... Qf7 {[%clk 0:01:17]} 23. Nh4 {[%clk 0:01:47.4]} 23...
Kh7 {[%clk 0:01:13.9]} 24. g4 {[%clk 0:01:46.1]} 24... c4 {[%clk 0:01:09]} 25.
Qe2 {[%clk 0:01:38.9]} 25... Qe7 {[%clk 0:01:08.6]} 26. Bg3 {[%clk 0:01:38.5]}
26... c5 {[%clk 0:01:02.9]} 27. Rhf1 {[%clk 0:01:31.9]} 27... Nc7 {[%clk
0:01:02.5]} 28. f5 {[%clk 0:01:30.8]} 28... exf5 {[%clk 0:00:48.2]} 29. gxf5
{[%clk 0:01:31.7]} 29... gxf5 {[%clk 0:00:43.6]} 30. Nxf5 {[%clk 0:01:32.6]}
30... Qe6 {[%clk 0:00:40.4]} 31. Qg4 {[%clk 0:01:23.3]} 31... Rg8 {[%clk
0:00:34]} 32. Qh4 {[%clk 0:01:17.8]} 32... Rae8 {[%clk 0:00:22.6]} 33. Nxg7
{[%clk 0:01:16.3]} 33... Rxg7 {[%clk 0:00:22.3]} 34. Rf6 {[%clk 0:01:16.7]}
34... Qe7 {[%clk 0:00:07.9]} 35. Rxh6+ {[%clk 0:01:16.3]} 35... Kg8 {[%clk
0:00:08.4]} 36. Rh8+ {[%clk 0:01:11.1]} 36... Kf7 {[%clk 0:00:08.9]} 37. e6+
{[%clk 0:01:05.4]} 37... Kxe6 {[%clk 0:00:08.7]} 38. Re1+ {[%clk 0:01:05.3]} 1-0

[Event "Late-Titled-Tuesday-Blitz-May-07-2024"]
[Site "Chess.com"]
[Date "2024.05.07"]
[Round "1"]
[White "AreYouTokkieToMe"]
[Black "RuperezA"]
[Result "0-1"]
[WhiteElo "2306"]
[BlackElo "2637"]
[TimeControl "180+1"]
[EndTime "14:06:16 PDT"]
[Termination "RuperezA won by resignation"]

1. c4 {[%clk 0:03:00.9]} 1... e6 {[%clk 0:02:58.5]} 2. g3 {[%clk 0:03:01.8]}
2... Nf6 {[%clk 0:02:59.1]} 3. Bg2 {[%clk 0:03:02]} 3... d5 {[%clk 0:03:00]} 4.
Nf3 {[%clk 0:03:02.3]} 4... Be7 {[%clk 0:02:59.2]} 5. O-O {[%clk 0:03:02.9]}
5... O-O {[%clk 0:03:00.1]} 6. Qc2 {[%clk 0:03:03]} 6... c6 {[%clk 0:02:58.3]}
7. d4 {[%clk 0:03:03.4]} 7... Nbd7 {[%clk 0:02:58.7]} 8. Nbd2 {[%clk 0:03:03.5]}
8... b6 {[%clk 0:02:59]} 9. e4 {[%clk 0:03:04]} 9... Ba6 {[%clk 0:02:58.7]} 10.
Re1 {[%clk 0:02:59.4]} 10... Rc8 {[%clk 0:02:57.3]} 11. b3 {[%clk 0:02:56.5]}
11... c5 {[%clk 0:02:34.2]} 12. exd5 {[%clk 0:02:49.4]} 12... exd5 {[%clk
0:02:32.7]} 13. dxc5 {[%clk 0:02:49.3]} 13... Bxc5 {[%clk 0:02:21.8]} 14. Bb2
{[%clk 0:02:37.5]} 14... dxc4 {[%clk 0:01:56]} 15. bxc4 {[%clk 0:02:35.5]} 15...
Qc7 {[%clk 0:01:55.3]} 16. Rad1 {[%clk 0:02:17.3]} 16... Rfe8 {[%clk 0:01:43.8]}
17. Bh3 {[%clk 0:01:56.1]} 17... Bb7 {[%clk 0:01:35.8]} 18. Qc3 {[%clk
0:01:40.1]} 18... Rxe1+ {[%clk 0:01:20.5]} 19. Rxe1 {[%clk 0:01:37.4]} 19... Rd8
{[%clk 0:01:14.8]} 20. Ne4 {[%clk 0:01:24.9]} 20... Bxe4 {[%clk 0:01:12.5]} 21.
Rxe4 {[%clk 0:01:24.5]} 21... Bxf2+ {[%clk 0:01:12.1]} 22. Kg2 {[%clk
0:01:19.8]} 22... Bc5 {[%clk 0:01:09.9]} 23. Re1 {[%clk 0:01:06.9]} 23... Bf8
{[%clk 0:01:05.8]} 24. Bf5 {[%clk 0:00:52.8]} 24... Nc5 {[%clk 0:01:00.5]} 25.
Bc2 {[%clk 0:00:47.2]} 25... Qc6 {[%clk 0:00:57.7]} 26. Kg1 {[%clk 0:00:45.2]}
26... Nce4 {[%clk 0:00:55.6]} 27. Qe5 {[%clk 0:00:38.2]} 27... Bd6 {[%clk
0:00:50.6]} 28. Qf5 {[%clk 0:00:31]} 28... g6 {[%clk 0:00:49.1]} 29. Qb5 {[%clk
0:00:23.6]} 29... Bc5+ {[%clk 0:00:47.4]} 30. Kg2 {[%clk 0:00:22.8]} 30... Qb7
{[%clk 0:00:45.9]} 31. Bxf6 {[%clk 0:00:19.4]} 31... Nxf6 {[%clk 0:00:46.8]} 32.
Re8+ {[%clk 0:00:19]} 32... Rxe8 {[%clk 0:00:45.9]} 0-1

[Event "Late-Titled-Tuesday-Blitz-May-07-2024"]
[Site "Chess.com"]
[Date "2024.05.07"]
[Round "1"]
[White "MKlose11"]
[Black "KorolDimitriy75"]
[Result "1-0"]
[WhiteElo "2687"]
[BlackElo "2384"]
[TimeControl "180+1"]
[EndTime "14:06:18 PDT"]
[Termination "MKlose11 won by resignation"]

1. e4 {[%clk 0:02:53.5]} 1... c5 {[%clk 0:03:00.1]} 2. Nc3 {[%clk 0:02:51.8]}
2... g6 {[%clk 0:02:59.8]} 3. d3 {[%clk 0:02:52]} 3... Bg7 {[%clk 0:03:00]} 4.
g3 {[%clk 0:02:52.9]} 4... Nc6 {[%clk 0:03:00.4]} 5. Bg2 {[%clk 0:02:52.8]} 5...
d6 {[%clk 0:03:01]} 6. Be3 {[%clk 0:02:52.5]} 6... e5 {[%clk 0:03:01.4]} 7. Qd2
{[%clk 0:02:52.5]} 7... Nge7 {[%clk 0:03:01.7]} 8. Bh6 {[%clk 0:02:52.7]} 8...
Bxh6 {[%clk 0:03:02]} 9. Qxh6 {[%clk 0:02:51.5]} 9... Nd4 {[%clk 0:03:02.9]} 10.
Qd2 {[%clk 0:02:49.7]} 10... Qa5 {[%clk 0:03:01.9]} 11. Nge2 {[%clk 0:02:46.2]}
11... Be6 {[%clk 0:02:58.1]} 12. O-O {[%clk 0:02:44.4]} 12... O-O {[%clk
0:02:53.9]} 13. f4 {[%clk 0:02:41.9]} 13... f5 {[%clk 0:02:48.7]} 14. Rad1
{[%clk 0:02:31.6]} 14... Rae8 {[%clk 0:02:47.1]} 15. a3 {[%clk 0:02:05.7]} 15...
b5 {[%clk 0:02:40.5]} 16. Rf2 {[%clk 0:01:32.2]} 16... Qb6 {[%clk 0:02:17.6]}
17. Rdf1 {[%clk 0:01:25.5]} 17... a5 {[%clk 0:02:08.7]} 18. Nd1 {[%clk
0:01:25.4]} 18... b4 {[%clk 0:02:06.5]} 19. axb4 {[%clk 0:01:24]} 19... axb4
{[%clk 0:02:07.4]} 20. c3 {[%clk 0:01:24.6]} 20... Nxe2+ {[%clk 0:01:55.2]} 21.
Qxe2 {[%clk 0:01:24.2]} 21... Nc6 {[%clk 0:01:50.4]} 22. Ne3 {[%clk 0:01:21.2]}
22... bxc3 {[%clk 0:01:40.5]} 23. bxc3 {[%clk 0:01:19.7]} 23... Qb3 {[%clk
0:01:39.1]} 24. exf5 {[%clk 0:01:18.5]} 24... gxf5 {[%clk 0:01:36.7]} 25. Bxc6
{[%clk 0:01:18.1]} 25... Re7 {[%clk 0:01:31.1]} 26. c4 {[%clk 0:01:14.2]} 26...
exf4 {[%clk 0:01:14.7]} 27. Rxf4 {[%clk 0:01:09.1]} 27... Bf7 {[%clk 0:01:12.9]}
28. Qd2 {[%clk 0:00:57.7]} 28... Bg6 {[%clk 0:01:00.4]} 29. Bd5+ {[%clk
0:00:54.6]} 29... Kh8 {[%clk 0:00:57.9]} 30. Nxf5 {[%clk 0:00:55.5]} 30... Bxf5
{[%clk 0:00:48.7]} 31. Rxf5 {[%clk 0:00:55.6]} 31... Rxf5 {[%clk 0:00:32.4]} 32.
Rxf5 {[%clk 0:00:56.5]} 32... Qb1+ {[%clk 0:00:26.4]} 33. Rf1 {[%clk 0:00:55.8]}
33... Qb8 {[%clk 0:00:24.5]} 34. Qf4 {[%clk 0:00:53.6]} 34... Qd8 {[%clk
0:00:16.7]} 35. Qf6+ {[%clk 0:00:53.1]} 1-0

[Event "Late-Titled-Tuesday-Blitz-May-07-2024"]
[Site "Chess.com"]
[Date "2024.05.07"]
[Round "1"]
[White "Revan_2002"]
[Black "Slovafn"]
[Result "1-0"]
[WhiteElo "2718"]
[BlackElo "2410"]
[TimeControl "180+1"]
[EndTime "14:06:25 PDT"]
[Termination "Revan_2002 won by checkmate"]

1. Nf3 {[%clk 0:02:53.2]} 1... Nf6 {[%clk 0:02:53.9]} 2. g3 {[%clk 0:02:53.2]}
2... c5 {[%clk 0:02:54.3]} 3. Bg2 {[%clk 0:02:53.6]} 3... g6 {[%clk 0:02:54.8]}
4. O-O {[%clk 0:02:54.2]} 4... Bg7 {[%clk 0:02:55.3]} 5. d4 {[%clk 0:02:54.5]}
5... O-O {[%clk 0:02:54.3]} 6. Nc3 {[%clk 0:02:52.8]} 6... cxd4 {[%clk
0:02:50.4]} 7. Nxd4 {[%clk 0:02:53.7]} 7... Nc6 {[%clk 0:02:50.9]} 8. Nb3 {[%clk
0:02:51.7]} 8... d6 {[%clk 0:02:50.3]} 9. e4 {[%clk 0:02:51.2]} 9... Be6 {[%clk
0:02:50.5]} 10. h3 {[%clk 0:02:49.2]} 10... a5 {[%clk 0:02:45.6]} 11. a4 {[%clk
0:02:48.1]} 11... Nb4 {[%clk 0:02:43.7]} 12. Nd4 {[%clk 0:02:45.6]} 12... Bc4
{[%clk 0:02:41.6]} 13. Re1 {[%clk 0:02:45.8]} 13... Nd7 {[%clk 0:02:40.3]} 14.
Be3 {[%clk 0:02:45]} 14... Rc8 {[%clk 0:02:35.6]} 15. Qd2 {[%clk 0:02:44.1]}
15... Ba6 {[%clk 0:02:31.5]} 16. Ndb5 {[%clk 0:02:36.9]} 16... Ne5 {[%clk
0:02:30]} 17. Bd4 {[%clk 0:02:25.2]} 17... Nc4 {[%clk 0:02:29.2]} 18. Qc1 {[%clk
0:02:24.4]} 18... Bxd4 {[%clk 0:02:12.8]} 19. Nxd4 {[%clk 0:02:25.3]} 19... Qc7
{[%clk 0:02:09.3]} 20. h4 {[%clk 0:02:13.5]} 20... Nxb2 {[%clk 0:02:03]} 21. Nd5
{[%clk 0:02:02.9]} 21... Nxd5 {[%clk 0:02:00.9]} 22. exd5 {[%clk 0:02:03.8]}
22... Qc3 {[%clk 0:01:44.6]} 23. Nf3 {[%clk 0:01:30.6]} 23... Qxc2 {[%clk
0:01:42.3]} 24. Qh6 {[%clk 0:01:29.8]} 24... Qc3 {[%clk 0:01:32.1]} 25. Re5
{[%clk 0:01:18.2]} 25... f6 {[%clk 0:00:48]} 26. Rxe7 {[%clk 0:01:09.8]} 26...
Rf7 {[%clk 0:00:48.3]} 27. Rxf7 {[%clk 0:01:09.4]} 27... Kxf7 {[%clk 0:00:49.2]}
28. Qxh7+ {[%clk 0:01:09.8]} 28... Kf8 {[%clk 0:00:46.7]} 29. Re1 {[%clk
0:00:44.4]} 29... Rc7 {[%clk 0:00:35.2]} 30. Qh8+ {[%clk 0:00:38.9]} 30... Kf7
{[%clk 0:00:33.2]} 31. Re8 {[%clk 0:00:39.6]} 31... g5 {[%clk 0:00:22.2]} 32.
Qg8# {[%clk 0:00:37.4]} 1-0

[Event "Late-Titled-Tuesday-Blitz-May-07-2024"]
[Site "Chess.com"]
[Date "2024.05.07"]
[Round "1"]
[White "lilylg"]
[Black "LaStreetCmaMaison"]
[Result "0-1"]
[WhiteElo "2234"]
[BlackElo "2616"]
[TimeControl "180+1"]
[EndTime "14:06:29 PDT"]
[Termination "LaStreetCmaMaison won on time"]

1. g3 {[%clk 0:02:56.8]} 1... d5 {[%clk 0:02:59.7]} 2. Bg2 {[%clk 0:02:54.5]}
2... Nf6 {[%clk 0:03:00.3]} 3. d3 {[%clk 0:02:54.1]} 3... c5 {[%clk 0:03:00.7]}
4. Nd2 {[%clk 0:02:47.7]} 4... Nc6 {[%clk 0:03:01]} 5. e4 {[%clk 0:02:46.7]}
5... e5 {[%clk 0:03:00.4]} 6. Ne2 {[%clk 0:02:46.9]} 6... h5 {[%clk 0:02:51.5]}
7. h4 {[%clk 0:00:43.6]} 7... Bg4 {[%clk 0:02:44.6]} 8. f3 {[%clk 0:00:33]} 8...
Be6 {[%clk 0:02:44.2]} 9. O-O {[%clk 0:00:32.8]} 9... Qb6 {[%clk 0:02:39.5]} 10.
Kh2 {[%clk 0:00:31.2]} 10... O-O-O {[%clk 0:01:57.4]} 11. a4 {[%clk 0:00:30.7]}
11... g5 {[%clk 0:01:27.6]} 12. exd5 {[%clk 0:00:23.9]} 12... Bxd5 {[%clk
0:01:18.1]} 13. Nc3 {[%clk 0:00:23.2]} 13... gxh4 {[%clk 0:01:16.2]} 14. gxh4
{[%clk 0:00:21.8]} 14... Nd4 {[%clk 0:01:14.7]} 15. Nde4 {[%clk 0:00:20.5]}
15... Be7 {[%clk 0:01:09.8]} 16. Nxd5 {[%clk 0:00:09.3]} 16... Nxd5 {[%clk
0:01:09.4]} 17. a5 {[%clk 0:00:03.9]} 17... Qg6 {[%clk 0:01:03.5]} 18. Ng5
{[%clk 0:00:03.4]} 18... f6 {[%clk 0:00:56.2]} 19. Ne4 {[%clk 0:00:02.4]} 19...
Kb8 {[%clk 0:00:49.9]} 20. Bh3 {[%clk 0:00:03.3]} 20... f5 {[%clk 0:00:48.1]}
21. Rg1 {[%clk 0:00:03.4]} 21... Qc6 {[%clk 0:00:46.5]} 22. Ng5 {[%clk
0:00:03.8]} 22... Nb4 {[%clk 0:00:35.4]} 23. c3 {[%clk 0:00:04.3]} 23... Bxg5
{[%clk 0:00:35.9]} 24. Bxg5 {[%clk 0:00:03.7]} 24... Nxf3+ {[%clk 0:00:35.6]}
25. Kg3 {[%clk 0:00:02.1]} 25... Rxd3 {[%clk 0:00:35.8]} 0-1

[Event "Late-Titled-Tuesday-Blitz-May-07-2024"]
[Site "Chess.com"]
[Date "2024.05.07"]
[Round "1"]
[White "h4parah5"]
[Black "Dr_troll"]
[Result "1-0"]
[WhiteElo "3018"]
[BlackElo "2546"]
[TimeControl "180+1"]
[EndTime "14:06:31 PDT"]
[Termination "h4parah5 won by checkmate"]

1. Nf3 {[%clk 0:03:00.9]} 1... Nf6 {[%clk 0:02:54.3]} 2. c3 {[%clk 0:03:00.3]}
2... d5 {[%clk 0:02:53.7]} 3. d4 {[%clk 0:02:59.4]} 3... g6 {[%clk 0:02:53.6]}
4. Bf4 {[%clk 0:02:56.7]} 4... Bg7 {[%clk 0:02:54]} 5. Nbd2 {[%clk 0:02:55.2]}
5... O-O {[%clk 0:02:54.6]} 6. e3 {[%clk 0:02:55.1]} 6... c5 {[%clk 0:02:48.1]}
7. Be2 {[%clk 0:02:51.5]} 7... Nc6 {[%clk 0:02:47.4]} 8. dxc5 {[%clk 0:02:50.4]}
8... Nd7 {[%clk 0:02:34.6]} 9. Nb3 {[%clk 0:02:48.5]} 9... e6 {[%clk 0:02:19.8]}
10. O-O {[%clk 0:02:46.4]} 10... a5 {[%clk 0:02:19.6]} 11. a4 {[%clk 0:02:45.5]}
11... h6 {[%clk 0:02:09.8]} 12. Bd6 {[%clk 0:02:40.4]} 12... Re8 {[%clk
0:02:09.5]} 13. Nfd4 {[%clk 0:02:38.3]} 13... e5 {[%clk 0:02:03.3]} 14. Nb5
{[%clk 0:02:37.8]} 14... Re6 {[%clk 0:01:42.6]} 15. Nc7 {[%clk 0:02:31.4]} 15...
Nxc5 {[%clk 0:01:41.9]} 16. Nxe6 {[%clk 0:02:23.7]} 16... Nxe6 {[%clk
0:01:40.5]} 17. Qxd5 {[%clk 0:02:23.2]} 17... Bd7 {[%clk 0:01:22.4]} 18. Rfd1
{[%clk 0:02:20.9]} 18... Qg5 {[%clk 0:01:19.9]} 19. Be7 {[%clk 0:02:12.6]} 19...
Nxe7 {[%clk 0:01:16.8]} 20. Qxd7 {[%clk 0:02:12.1]} 20... Nf5 {[%clk 0:01:14.4]}
21. Qxb7 {[%clk 0:02:09]} 21... Rf8 {[%clk 0:01:13.2]} 22. Qe4 {[%clk
0:02:03.4]} 22... h5 {[%clk 0:01:11.3]} 23. Nd2 {[%clk 0:01:55.8]} 23... Rb8
{[%clk 0:01:09.9]} 24. Rab1 {[%clk 0:01:54.6]} 24... Nh4 {[%clk 0:01:01.1]} 25.
g3 {[%clk 0:01:53.2]} 25... Nf5 {[%clk 0:01:01.1]} 26. Nf3 {[%clk 0:01:50]}
26... Qe7 {[%clk 0:01:01.2]} 27. b4 {[%clk 0:01:44]} 27... h4 {[%clk 0:00:47.6]}
28. Nxh4 {[%clk 0:01:37.5]} 28... Nxh4 {[%clk 0:00:43.2]} 29. Qxh4 {[%clk
0:01:37.2]} 29... Bf6 {[%clk 0:00:42.2]} 30. Qg4 {[%clk 0:01:36.1]} 30... axb4
{[%clk 0:00:42]} 31. cxb4 {[%clk 0:01:35.6]} 31... Ng7 {[%clk 0:00:34.9]} 32. b5
{[%clk 0:01:33.1]} 32... Nf5 {[%clk 0:00:35.5]} 33. b6 {[%clk 0:01:31.4]} 33...
Qc5 {[%clk 0:00:34.6]} 34. Qc4 {[%clk 0:01:30.5]} 34... Qa3 {[%clk 0:00:33.1]}
35. Rd3 {[%clk 0:01:26]} 35... Qe7 {[%clk 0:00:28]} 36. b7 {[%clk 0:01:25.4]}
36... e4 {[%clk 0:00:28.4]} 37. Qc8+ {[%clk 0:01:19.1]} 37... Kg7 {[%clk
0:00:27.3]} 38. Rd7 {[%clk 0:01:12.4]} 38... Qa3 {[%clk 0:00:19.2]} 39. Qxb8
{[%clk 0:01:11]} 39... Nxe3 {[%clk 0:00:19.7]} 40. Qd6 {[%clk 0:01:09.5]} 40...
Qa2 {[%clk 0:00:18.4]} 41. b8=Q {[%clk 0:01:06.7]} 41... Qxe2 {[%clk 0:00:18.8]}
42. Rxf7+ {[%clk 0:01:04.4]} 42... Kh6 {[%clk 0:00:18.2]} 43. Qf4+ {[%clk
0:00:58.3]} 43... Kh5 {[%clk 0:00:16.2]} 44. Rh7# {[%clk 0:00:56.9]} 1-0

[Event "Late-Titled-Tuesday-Blitz-May-07-2024"]
[Site "Chess.com"]
[Date "2024.05.07"]
[Round "1"]
[White "ACollins05"]
[Black "TigrVShlyape"]
[Result "0-1"]
[WhiteElo "2532"]
[BlackElo "2950"]
[TimeControl "180+1"]
[EndTime "14:06:31 PDT"]
[Termination "TigrVShlyape won by checkmate"]

1. d4 {[%clk 0:02:51.3]} 1... f5 {[%clk 0:02:58.9]} 2. Nf3 {[%clk 0:02:50.3]}
2... Nf6 {[%clk 0:02:57.8]} 3. g3 {[%clk 0:02:50.7]} 3... g6 {[%clk 0:02:57.4]}
4. Bg2 {[%clk 0:02:51.2]} 4... Bg7 {[%clk 0:02:57.7]} 5. O-O {[%clk 0:02:51.9]}
5... O-O {[%clk 0:02:56.2]} 6. c4 {[%clk 0:02:51.7]} 6... c6 {[%clk 0:02:55.2]}
7. Nc3 {[%clk 0:02:51.1]} 7... d6 {[%clk 0:02:54.3]} 8. b3 {[%clk 0:02:49.7]}
8... a5 {[%clk 0:02:46]} 9. Bb2 {[%clk 0:02:49.4]} 9... Na6 {[%clk 0:02:45.9]}
10. d5 {[%clk 0:02:38.2]} 10... e5 {[%clk 0:02:30.3]} 11. dxe6 {[%clk
0:02:36.6]} 11... Bxe6 {[%clk 0:02:28.4]} 12. Nd4 {[%clk 0:02:14.3]} 12... Bd7
{[%clk 0:02:20.1]} 13. Nc2 {[%clk 0:02:11.5]} 13... Qe7 {[%clk 0:02:12.3]} 14.
Re1 {[%clk 0:02:08.4]} 14... Nc5 {[%clk 0:02:11.5]} 15. Ne3 {[%clk 0:01:53.8]}
15... Nfe4 {[%clk 0:01:50.5]} 16. Qc2 {[%clk 0:01:48.3]} 16... Ng5 {[%clk
0:01:42.1]} 17. Rad1 {[%clk 0:01:31]} 17... f4 {[%clk 0:01:39.6]} 18. Nf1 {[%clk
0:01:29.2]} 18... Nh3+ {[%clk 0:01:32.6]} 19. Bxh3 {[%clk 0:01:28.2]} 19... Bxh3
{[%clk 0:01:33.3]} 20. Qd2 {[%clk 0:00:57]} 20... Be5 {[%clk 0:01:28.2]} 21. e3
{[%clk 0:00:52.5]} 21... fxg3 {[%clk 0:01:21.9]} 22. Nxg3 {[%clk 0:00:43.5]}
22... Rf3 {[%clk 0:01:16.6]} 23. Nce2 {[%clk 0:00:36.8]} 23... Raf8 {[%clk
0:01:10.5]} 24. Nf4 {[%clk 0:00:26.9]} 24... Bg4 {[%clk 0:01:06.6]} 25. Bxe5
{[%clk 0:00:16.5]} 25... dxe5 {[%clk 0:01:05.5]} 26. Ng2 {[%clk 0:00:12.6]}
26... Rxf2 {[%clk 0:01:04.6]} 27. Qxf2 {[%clk 0:00:13.5]} 27... Rxf2 {[%clk
0:01:03.7]} 28. Kxf2 {[%clk 0:00:14.4]} 28... Bxd1 {[%clk 0:01:01.2]} 29. Rxd1
{[%clk 0:00:15.3]} 29... Kf7 {[%clk 0:00:52.4]} 30. h4 {[%clk 0:00:11.4]} 30...
Ke8 {[%clk 0:00:50]} 31. h5 {[%clk 0:00:11.3]} 31... gxh5 {[%clk 0:00:48.1]} 32.
Rh1 {[%clk 0:00:11.2]} 32... Qf6+ {[%clk 0:00:47.2]} 33. Ke2 {[%clk 0:00:09.1]}
33... Qg6 {[%clk 0:00:46.9]} 34. Kf2 {[%clk 0:00:08.8]} 34... Nd3+ {[%clk
0:00:46.3]} 35. Kf3 {[%clk 0:00:08.2]} 35... Qg4# {[%clk 0:00:45.9]} 0-1